Cogmind - Beta 16 @@@ ROGUE MODE // 2025.11.15 @ 15:03:00 Player: ktur Result: Destroyed by G2-RM2(R) with Subdweller Machine Gun Performance ------------- Evolutions (0) 0 Regions Visited (2) 400 Robots Destroyed (20) 100 Value Destroyed (437) 437 Prototype IDs (12) 240 Alien Tech Used (0) 0 Bonus (0) 0 TOTAL SCORE: 1177 Bonus ------- None Cogmind --------- Core Integrity 0/250 Matter 280/300 Energy 115/125 System Corruption 0% Temperature Cool (0) Movement Treading (160) Location -10/Subcaves Parts ------- > --- POWER (1) -------- Light Ion Engine > --- PROPULSION (2) --- Light Treads Spiked Treads > --- UTILITY (2) ------ Small Storage Unit > --- WEAPON (2) ------- Subdweller Beam Cannon > --- INVENTORY (8) ---- Subdweller Power Source Spiked Treads Gun Armor Scrap Shield Mining Laser Peak State ------------ > --- POWER ------------ Light Ion Engine > --- PROPULSION ------- Light Treads Spiked Treads > --- UTILITY ---------- Small Storage Unit Subdweller Optics > --- WEAPON ----------- Beam Cannon Subdweller Beam Cannon > --- INVENTORY -------- Subdweller Power Source Spiked Treads Gun Armor Scrap Shield Mining Laser [Rating: 11] Favorites ----------- Power Light Ion Engine Engine Light Ion Engine Propulsion Light Treads Treads Light Treads Utility Small Storage Unit Device Subdweller Optics Storage Small Storage Unit Weapon Beam Cannon Energy Gun Small Laser Energy Cannon Beam Cannon Ballistic Gun Light Assault Rifle Special Weapon Mining Laser Build | -11 -10 -10 ------- Run | Yrd Mat Sub Slots Evolved . | . . . Power . | . . . Propulsion . | . . . Utility . | . . . Weapon . | . . . Parts Attached 16 | 7 2 7 Power 2 | 1 . 1 Engine 2 | 1 . 1 Core . | . . . Reactor . | . . . Propulsion 4 | 2 . 2 Treads 4 | 2 . 2 Leg . | . . . Wheel . | . . . Hover . | . . . Flight . | . . . Utility 3 | 2 . 1 Device 2 | 1 . 1 Storage 1 | 1 . . Processor . | . . . Hackware . | . . . Protection . | . . . Artifact . | . . . Weapon 7 | 2 2 3 Energy Gun 1 | 1 . . Energy Cannon 4 | . 2 2 Ballistic Gun 1 | 1 . . Ballistic Cannon . | . . . Launcher . | . . . Special Weapon 1 | . . 1 Impact Weapon . | . . . Slashing Weapon . | . . . Piercing Weapon . | . . . Special Melee Weapon . | . . . Unidentified Prototypes . | . . . Parts Lost 6 | . . 6 Power 1 | . . 1 Propulsion 2 | . . 2 Utility 2 | . . 2 Weapon 1 | . . 1 Highest Loss Streak 1 | . . 1 To Critical Strikes . | . . . Average Backups 6 | 2 5 6 Power . | . 1 . Propulsion 2 | 1 2 2 Utility 1 | . . 1 Weapon 1 | 1 2 1 Tool/Special . | . . . Unused Backups 9 | . . 9 Power 2 | . . 2 Propulsion 3 | . . 3 Utility 2 | . . 2 Weapon 2 | . . 2 Tool/Special . | . . . Average Slot Usage (%) 99 | . 99 99 Engine 13 | . 14 13 Treads 27 | . 28 27 Device 13 | . 14 13 Storage 14 | . 14 14 Energy Gun 1 | . 12 . Energy Cannon 23 | . 2 26 Ballistic Gun 1 | . 12 . Peak Build Rating 11 | 7 7 11 Average Rating 9 | 5 6 9 On Entrance 4 | . 7 7 Avg Prop Armor Cover (%) . | . . . Naked Turns . | . . . Heaviest Build 21 | 11 15 21 Greatest Support 40 | 40 40 40 Greatest Overweight (x) . | . . . Average Overweight (x) . | . . . Largest Inventory Capacity 8 | 8 8 8 Average Capacity 7 | 7 8 8 Most Carried 8 | 5 8 8 Average Carried 6 | 3 5 7 Final Capacity 8 | 8 8 8 Final Carried 8 | 5 8 6 Class Distribution -------------------- 100% | Mutant Dominant Class ---------------- Mutant | -10/Materials Mutant | -10/Subcaves Resources | -11 -10 -10 ----------- Run | Yrd Mat Sub Matter Collected 441 | 247 44 150 Remotely . | . . . Salvage Created 574 | 61 108 405 Parts 44 | 10 11 23 Haulers Intercepted . | . . . Recyclers Shooed 2 | 2 . . Parts Field Recycled . | . . . Retrieved Matter . | . . . Parts Self-Destructed 13 | . . 13 Prevented . | . . . Parts Restored . | . . . Kills | -11 -10 -10 ------- Run | Yrd Mat Sub Combat Hostiles Destroyed 16 | . 6 10 Guns 6 | . 6 . Cannons 9 | . . 9 Classes Destroyed 4 | 1 2 1 Tunneler 3 | 3 . . Watcher 1 | . 1 . Swarmer 8 | . 6 2 Subdweller 8 | . . 8 Best Kill Streak 3 | 2 3 2 Combat Bots Only 3 | . 3 2 Max Kills in Single Turn 1 | 1 1 1 Gunslinging . | . . . Exploded . | . . . Melee . | . . . Uniques/NPCs Destroyed . | . . . Combat | -11 -10 -10 -------- Run | Yrd Mat Sub Hostile Shots Fired 83 | . 34 49 Missed 15 | . 6 9 Hits 68 | . 28 40 Projectile 68 | . 28 40 Critical Strikes 1 | . 1 . Damage Taken 1138 | . 232 906 Core 254 | . 31 223 Absorbed by Shields . | . . . Core Remaining (%) 100 | 100 . . Volleys Fired 78 | 10 13 55 Largest 2 | 2 2 2 Hottest 160 | 60 60 160 Shots Fired 133 | 20 26 87 Gun 46 | 20 26 . Cannon 71 | . . 71 Launcher . | . . . Special 16 | . . 16 Kinetic 23 | 10 13 . Thermal 110 | 10 13 87 Explosive . | . . . Electromagnetic . | . . . Robot Hit Streak 13 | 12 8 13 Robot Miss Streak 3 | 1 1 3 Penetration Max . | . . . Secondary Targets 1 | . 1 . Max Gunslinging Chain 1 | . 1 . Shots Hit Robots 76 | 15 20 41 Core Hits 29 | 5 8 16 Critical Kills 1 | . . 1 Critical Parts Destroyed . | . . . Critical Strikes 1 | . . 1 Meltdown 1 | . . 1 Melee Attacks . | . . . Impact . | . . . Slashing . | . . . Piercing . | . . . Sneak Attacks . | . . . Combat Hostiles . | . . . Follow-up Attacks . | . . . Damage Inflicted 1185 | 143 223 819 Guns 362 | 142 220 . Cannons 819 | . . 819 Explosions . | . . . Melee . | . . . Ramming 4 | 1 3 . Kinetic 133 | 66 67 . Thermal 1048 | 76 153 819 Explosive . | . . . Electromagnetic . | . . . Impact . | . . . Slashing . | . . . Piercing . | . . . Highest Corruption . | . . . Average Corruption . | . . . Corruption Purged . | . . . Corruption Blocked . | . . . Overload Shots . | . . . Overflow Damage . | . . . Projectiles . | . . . Explosions . | . . . Melee . | . . . Knockbacks . | . . . Impact . | . . . Kinetic . | . . . Secondary . | . . . Self-Inflicted Damage . | . . . Shots . | . . . Rammed 1 | 1 . . Targets Rammed 2 | 1 1 . Kicked . | . . . Crushed 1 | . 1 . Highest Temperature 40 | 40 40 35 Average Temperature 17 | 25 17 14 Received Heat Transfer 90 | . . 90 Siege Activations . | . . . Martial Activations . | . . . Shielding Activations . | . . . Robots Disrupted . | . . . Combat Hostiles . | . . . Robots Corrupted . | . . . Combat Hostiles . | . . . Parts Fried . | . . . Impact Corruptions . | . . . Robots Melted 1 | . . 1 Combat Hostiles 1 | . . 1 Parts Melted 4 | . . 4 Heat Transferred 2017 | 175 325 1517 Parts Sabotaged . | . . . Parts Stolen . | . . . Parts Stripped . | . . . Power Chain Reactions . | . . . Alert | -11 -10 -10 ------- Run | Yrd Mat Sub Maximum Alert Level . | . . . Low Security (%) 100 | 100 100 . Level 1 . | . . . Level 2 . | . . . Level 3 . | . . . Level 4 . | . . . Level 5 . | . . . High Security . | . . . Max Security . | . . . Peak Influence 90 | 10 90 . Initial . | . . . Average 31 | 1 42 . Influence Increases 224 | 15 159 50 Destroy 0b10 Robot/C 160 | . 120 40 Destroy 0b10 Robot/NC 20 | 15 5 . Destroy Leader 32 | . 22 10 Successful Hack 12 | . 12 . Influence Decreases 224 | 15 132 77 Entered New Map 14 | . . 14 Time Decay 210 | 15 132 63 Squads Dispatched . | . . . Investigation . | . . . Extermination . | . . . Reinforcement . | . . . Assault . | . . . Garrison . | . . . Intercept . | . . . Searches Triggered . | . . . Construction Impeded . | . . . Haulers Reinforced . | . . . Active Scanning Responses . | . . . Cargo Convoy Interrupts . | . . . Stealth | -11 -10 -10 --------- Run | Yrd Mat Sub Distress Signals . | . . . Communications Jammed . | . . . Distress Signals . | . . . Times Spotted 20 | . 9 11 Peak Tracking Total 3 | . 3 2 Tactical Retreats . | . . . Traps | -11 -10 -10 ------- Run | Yrd Mat Sub Traps Triggered 3 | . . 3 Indirectly . | . . . Trap Hack Attempts . | . . . Triggered . | . . . Disarmed . | . . . Reprogrammed . | . . . Reused . | . . . Traps Extracted . | . . . Installed . | . . . Triggered . | . . . Machines | -11 -10 -10 ---------- Run | Yrd Mat Sub Machines Disabled 1 | . . 1 Max in Single Turn 1 | . . 1 Machines Repaired . | . . . Machines Dismantled . | . . . Machines Sabotaged . | . . . Overloaded Fab Kills . | . . . Hacking | -11 -10 -10 --------- Run | Yrd Mat Sub Machines Accessed 3 | . 1 2 Terminals 1 | . 1 . Fabricators . | . . . Repair Stations . | . . . Recycling Units . | . . . Scanalyzers . | . . . Garrison Access . | . . . Total Hacks 9 | . 4 5 Successful 8 | . 3 5 Failed 1 | . 1 . Catastrophic . | . . . Database Lockouts . | . . . Manual 4 | . 4 . Terminals 4 | . 4 . Fabricators . | . . . Repair Stations . | . . . Recycling Units . | . . . Scanalyzers . | . . . Garrison Access . | . . . Terminal Hacks 7 | . 2 5 Record 4 | . . 4 Robot Analysis 2 | . 2 . Proto ID Catalog 1 | . . 1 Fabricator Hacks . | . . . Repair Station Hacks . | . . . Recycling Unit Hacks . | . . . Scanalyzer . | . . . Garrison Access Hacks . | . . . Unauthorized Hacks 1 | . 1 . Terminals 1 | . 1 . Skim 1 | . 1 . Fabricators . | . . . Repair Stations . | . . . Recycling Units . | . . . Scanalyzers . | . . . Garrison Access . | . . . Data Cores Recovered . | . . . Used . | . . . Hacking Detections 1 | . 1 . Full Trace Events . | . . . Feedback Events . | . . . Feedback Blocked . | . . . Robot Schematics Acquired . | . . . Robots Built . | . . . Authchips . | . . . Time . | . . . Total Robot Build Rating . | . . . Part Schematics Acquired . | . . . Parts Built . | . . . Authchips . | . . . Time . | . . . Total Part Build Rating . | . . . Part Studies Acquired . | . . . Parts Repaired . | . . . Time . | . . . Parts Recycled . | . . . Recycled Matter . | . . . Retrieved Matter . | . . . Retrieved Components . | . . . Parts Scanalyzed . | . . . Part Schematics Acquired . | . . . Parts Damaged . | . . . Bothacking | -11 -10 -10 ------------ Run | Yrd Mat Sub Used RIF Installer . | . . . Robots Hacked . | . . . Non-combat . | . . . Combat . | . . . Robot Hacks Applied . | . . . Relay Couplers Released . | . . . Fabnet Peak Effective % . | . . . Robots Rewired . | . . . Allies Hacked . | . . . Hacks Repelled . | . . . Allies | -11 -10 -10 -------- Run | Yrd Mat Sub Total Allies . | . . . Largest Group . | . . . Highest-Rated Group . | . . . Highest-Rated Ally . | . . . Total Orders . | . . . Ally Attacks . | . . . Total Damage . | . . . Kills . | . . . Allies Corrupted . | . . . Allies Melted . | . . . Intel | -11 -10 -10 ------- Run | Yrd Mat Sub Active Infowar (turns) 1361 | 59 317 985 Optics 505 | . . 505 Seismic 856 | 59 317 480 Robot Analysis Total 2 | . 2 . Derelict Logs Recovered 2 | . . 2 Drone Launches . | . . . Drone Recoveries . | . . . Exploration | -11 -10 -10 ------------- Run | Yrd Mat Sub Turns Passed 2361 | 119 317 1925 Spaces Moved 1270 | 48 170 1052 Core 3 | 3 . . Treads 1267 | 45 170 1052 Legs . | . . . Wheels . | . . . Hover . | . . . Flight . | . . . Fastest Speed 50 | 50 160 160 Average Speed 159 | 153 160 160 Slowest Speed 160 | 160 160 160 Overloaded Moves . | . . . Propulsion Burnouts . | . . . Robots Hopped . | . . . Potential Cave-ins . | . . . Cave-ins Triggered . | . . . Exploration Rate (%) 33 | 5 31 63 Regions Visited 2 Branch Regions 1 Pre-discovered Areas 1 | . . 1 Known Exits Taken . | . . . Unknown Exits Taken 2 | 1 1 . Scrap Searched 1 | . . 1 Spaces Dug . | . . . Terrain Destroyed . | . . . Melee . | . . . Projectile . | . . . AOE . | . . . Terrain Rammed . | . . . Walls Destroyed . | . . . Machines Disabled . | . . . Actions | -11 -10 -10 --------- Run | Yrd Mat Sub Total 1434 | 73 191 1170 Wait 32 | . 1 31 Move 1268 | 47 169 1052 Hop . | . . . Pick Up 18 | 8 3 7 Fast Attach 8 | 4 2 2 Attach 7 | 3 . 4 Detach . | . . . Swap 11 | . . 11 Drop 10 | . 2 8 Fire 78 | 10 13 55 Melee . | . . . Ram . | . . . Kick . | . . . Crush 2 | 1 1 . Escape Stasis . | . . . Rewire . | . . . Trap . | . . . Miscellaneous . | . . . Route ------- -11/Scrapyard -10/Materials (discovered 3 exits: [*Mat] / [*Min] / *Sub) -10/Subcaves (discovered 2 exits: [*Mat x2]) History --------- Turn | Location | Event 21 | -11/Scrapyard | Discovered new exit (range 16) 120 | -11/Scrapyard | Entered Materials 173 | -10/Materials | Discovered new exit (range 13) 267 | -10/Materials | Discovered new exit (range 15) 311 | -10/Materials | Build established: Mutant 421 | -10/Materials | Discovered new exit (range 9) 437 | -10/Materials | Entered Subcaves 500 | -10/Subcaves | Shifting Twisted Machinery released Spk. Treads 508 | -10/Subcaves | Discovered new exit (range 10) 527 | -10/Subcaves | Shifting Twisted Machinery released Scrap Shield 596 | -10/Subcaves | Visited 4L-MR0's lab 617 | -10/Subcaves | Found Gun Armor 820 | -10/Subcaves | Learned 4 Materials zone layouts 1629 | -10/Subcaves | Core integrity fell below 50% 1805 | -10/Subcaves | Learned Materials terminal intel 1858 | -10/Subcaves | Visited Clippyterm 1863 | -10/Subcaves | Learned Factory stockpile data 2049 | -10/Subcaves | Core integrity fell below 20% 2118 | -10/Subcaves | A swath of the cavern ceiling suddenly collapsed 2190 | -10/Subcaves | Learned location of Zion (-7) 2190 | -10/Subcaves | Met a Zionite searching for "candidates" 2340 | -10/Subcaves | Discovered new exit (range 7) 2362 | -10/Subcaves | Destroyed by G2-RM2(R) with Subdweller Machine Gun Last Messages --------------- 02026_ Triggered Shrapnel Trap. 02026_ An expanding cloud of shrapnel blasts out in all directions. 02041_ Disposable Heat Sink melted. 02041_ RU-KHF(R) destroyed. 02048_ Triggered Piercing Trap. 02048_ Spikes shoot up from the floor. 02048_ Critical hit (Impale). A swath of the cavern ceiling suddenly collapses. 02163_ EB-6EJ(z): "She is not going to be happy we haven't found any suitable candidates yet." 02190_ EB-6EJ(z): "Hey you! It's really dangerous down here, I feel that you could die at any moment. For your health and safety might I suggest a trip to Zion?" World map updated: -7/Zion. 02296_ Triggered Piercing Trap. 02296_ Spikes shoot up from the floor. 02296_ Critical hit (Impale). 02296_ Broken Sub. Optics destroyed. 02340_ EXIT=FOUND 02360_ Beam Cannon destroyed. Map ----- +----------------------------------------------------+ | | | | | | | | | | | | | | | | | | | ?????????????????????????????????????????????????? | | ?????????????????????????????????????????????????? | | ?????????????????????????????????????????????????? | | ?????????????????????????????????????????????????? | | ?????????????????????????????????????????????????? | | ?????????????????????????????????????????????????? | | ?????????????????????????????????????????????????? | | ?????????????????????????????????????????????????? | | ?????????????????????????????????????????????????? | | ?????????????????????????????????????????????????? | | ?????????????????????????????????????????????????? | | ????????????????????????????##???????????????????? | | ???????????????????????????? ????????????????????? | | ??????????????????????????? ????????????????????? | | ???????????????????????????&##???????????????????? | | ????????????????????????### $#?#?????????????????? | | ??????????????????????###@# ## #?????????????????? | | ?????????????????????## R " #?????????????????? | | ????????????????????## #?????????????????? | | ????????????????????# #?????????????????? | | ????????????????????# ####?????????????????? | | ????????????????????## #????????????????????? | | ????????????????????# ## #??????????????????? | | ????????????????????## ### < #?????????????????? | | ????????????????????# ##??# #????????????????? | | ????????????????????# #????# ##????????????????? | | ???????????????????## #?????##?????????????????? | | ???????????????????# #????????????????????????? | | ???????????????????# ##???????????????????????? | | ????????????## ### #####???????????????????? | | ????????????# ##??????????????????? | | ????????????# #??????????????????? | | ????????????# ##?????????????????? | | ????????????## ## #?????????????????? | | ???????????### ## #?####????????????? | | ???????????# ### #????????????? | | ??????????## ##???????????? | | ?????????## #???????????? | | ?????????# ### ### #???????????? | | ?????????# ##?## ##?## ##???????????? | | ??????????# #????###??# #???????????? | +----------------------------------------------------+ Best States ------------- Heat Dissipation 25 Energy Generation 10 Energy Capacity 125 Matter Stores 300 Matter Capacity 300 Sight Range 21 Terrain Scan Density 10 Evasion (%) 40 Recoil Reduction 2 Item Schematics ----------------- None Robot Schematics ------------------ None Fabricated ------------ Nothing Repaired ---------- Nothing Studied --------- None Alien Tech Used ----------------- None Achievements -------------- None Challenges ------------ None Game ------ Seed DecoderHypercooledReplica Manual? 0 Play Time 00:14:47 Cumulative 828.7 hours Start 2025.11.15 @ 14:54:04 End 2025.11.15 @ 15:03:00 Sessions 1 Manual Loads 0 Difficulty Rogue Special Mode None Game No. 832 Rogue 832 Adventurer 0 Explorer 0 Win Type - Total 40 Types 15/4/11/2/0/0/5/2/1/0 Lore% 96 Gallery% 86 Achievement% 62 Wizard Run 0 Options --------- Layout 0 ASCII 0 Keyboard 0 Movement Numpad Keybinds 0 Fullscreen 1 Font 18/Smallcaps Map View 76x50 Zoom Use 0% Tactical HUD 1 Map Filters NONE Filters NONE Steam 1 RUN: fcceb00a-0bd6-4b91-b44e-5c9bd9f936e5